Cogmind - Beta 13 @@@ ROGUE MODE // 2024.07.24 @ 13:07:57 Player: Wonda Result: Destroyed by G-47 Trooper with Particle Gun Performance ------------- Evolutions (2) 1000 Regions Visited (6) 1200 Robots Destroyed (29) 145 Value Destroyed (897) 897 Prototype IDs (1) 20 Alien Tech Used (0) 0 Bonus (500) 500 TOTAL SCORE: 3762 Bonus ------- Entered Garrisons 200 Aligned with FarCom 300 Cogmind --------- Core Integrity 0/550 Matter 257/300 Energy 290/290 System Corruption 1% Temperature Cool (59) Movement Walking (120) Location -8/Garrison Parts ------- > --- POWER (1) -------- Improved Deuterium Engine > --- PROPULSION (4) --- Improved Carbon-fiber Leg > --- UTILITY (4) ------ Targeting Computer Targeting Computer Improved Targeting Computer Hacking Suite > --- WEAPON (2) ------- Shock Rifle Gauss Rifle > --- INVENTORY (5) ---- Ion Engine Armor Integrity Analyzer System Shield Trap Reconfigurator Datajack Peak State ------------ > --- POWER ------------ Improved Deuterium Engine > --- PROPULSION ------- Improved Carbon-fiber Leg > --- UTILITY ---------- Targeting Computer Targeting Computer Improved Targeting Computer Hacking Suite > --- WEAPON ----------- Shock Rifle Gauss Rifle > --- INVENTORY -------- Ion Engine Armor Integrity Analyzer System Shield Trap Reconfigurator Datajack [Rating: 23] Favorites ----------- Power Ion Engine Engine Ion Engine Power Core Light Nuclear Core Propulsion Light Treads Treads Light Treads Leg Improved Carbon-fiber Leg Utility Small Storage Unit Device Trap Reconfigurator Storage Small Storage Unit Processor Targeting Computer Hackware Hacking Suite Weapon Light Assault Rifle Energy Gun Shock Rifle Ballistic Gun Light Assault Rifle Launcher Grenade Launcher Build | -11 -10 -10 -10 -9 -8 -8 ------- Run | Yrd Mat Min Exi Min Mat Gar Slots Evolved 4 | . . . . . 4 . Power . | . . . . . . . Propulsion 2 | . . . . . 2 . Utility 2 | . . . . . 2 . Weapon . | . . . . . . . Parts Attached 35 | 6 5 . 3 1 20 . Power 5 | 1 1 . . . 3 . Engine 4 | 1 1 . . . 2 . Core 1 | . . . . . 1 . Reactor . | . . . . . . . Propulsion 7 | 2 . . 1 . 4 . Treads 6 | 2 . . 1 . 3 . Leg 1 | . . . . . 1 . Wheel . | . . . . . . . Hover . | . . . . . . . Flight . | . . . . . . . Utility 10 | 1 1 . 2 . 6 . Device 4 | . 1 . 2 . 1 . Storage 1 | 1 . . . . . . Processor 4 | . . . . . 4 . Hackware 1 | . . . . . 1 . Protection . | . . . . . . . Artifact . | . . . . . . . Weapon 13 | 2 3 . . 1 7 . Energy Gun 1 | . . . . . 1 . Energy Cannon . | . . . . . . . Ballistic Gun 10 | 2 2 . . . 6 . Ballistic Cannon . | . . . . . . . Launcher 2 | . 1 . . 1 . . Special Weapon . | . . . . . . . Impact Weapon . | . . . . . . . Slashing Weapon . | . . . . . . . Piercing Weapon . | . . . . . . . Special Melee Weapon . | . . . . . . . Unidentified Prototypes 1 | . . . 1 . . . Parts Lost 17 | . . . 2 . 15 . Power 2 | . . . . . 2 . Propulsion 6 | . . . 1 . 5 . Utility 1 | . . . . . 1 . Weapon 8 | . . . 1 . 7 . Highest Loss Streak 4 | . . . 2 . 4 . To Critical Strikes . | . . . . . . . Average Slot Usage (%) 80 | . 98 100 97 100 64 72 Engine 9 | . 14 14 14 14 5 9 Treads 19 | . 28 28 28 28 14 . Device 9 | . 12 14 13 14 6 . Storage 10 | . 14 14 14 14 7 . Processor 5 | . . . . . 8 27 Hackware 1 | . . . . . 1 9 Ballistic Gun 18 | . 22 28 25 14 13 9 Launcher 3 | . 5 . . 14 3 . Naked Turns . | . . . . . . . Heaviest Build 17 | 13 16 14 14 15 17 17 Greatest Support 60 | 40 40 40 40 40 60 18 Greatest Overweight (x) 2 | 2 . . . . 2 . Average Overweight (x) . | . . . . . . . Largest Inventory Capacity 8 | 8 8 8 8 8 8 5 Average Capacity 7 | 6 8 8 8 8 7 5 Most Carried 8 | 1 7 8 8 6 7 5 Average Carried 5 | . 4 7 7 6 5 5 Final Capacity 8 | 8 8 8 8 8 5 5 Final Carried 8 | 1 7 8 7 6 5 5 Class Distribution -------------------- 70% | Mutant 29% | Scavenger-Mutant Dominant Class ---------------- Mutant | -10/Materials Mutant | -10/Mines Mutant | -10/Exiles Mutant | -9/Mines Mutant | -8/Materials Scavenger-Mutant | -8/Garrison Resources | -11 -10 -10 -10 -9 -8 -8 ----------- Run | Yrd Mat Min Exi Min Mat Gar Matter Collected 880 | 189 153 24 . . 514 . Remotely . | . . . . . . . Salvage Created 895 | . 153 . . . 698 44 Parts 71 | . 15 . . . 53 3 Haulers Intercepted . | . . . . . . . Recyclers Shooed . | . . . . . . . Parts Field Recycled . | . . . . . . . Retrieved Matter . | . . . . . . . Parts Self-Destructed . | . . . . . . . Prevented . | . . . . . . . Kills | -11 -10 -10 -10 -9 -8 -8 ------- Run | Yrd Mat Min Exi Min Mat Gar Combat Hostiles Destroyed 25 | . 6 . . . 18 1 Guns 24 | . 6 . . . 17 1 AOE 1 | . . . . . 1 . Classes Destroyed 8 | . 3 . . . 5 . Tunneler 1 | . . . . . 1 . Recycler 1 | . 1 . . . . . Operator 2 | . 1 . . . 1 . Swarmer 11 | . 6 . . . 5 . Grunt 3 | . . . . . 2 1 Sentry 5 | . . . . . 5 . Specialist 4 | . . . . . 4 . Hunter 2 | . . . . . 2 . Best Kill Streak 4 | . 4 . . . 4 1 Combat Bots Only 4 | . 3 . . . 4 1 Max Kills in Single Turn 1 | . 1 . . . 1 1 Gunslinging . | . . . . . . . Exploded 1 | . . . . . 1 . Melee . | . . . . . . . Uniques/NPCs Destroyed . | . . . . . . . Combat | -11 -10 -10 -10 -9 -8 -8 -------- Run | Yrd Mat Min Exi Min Mat Gar Hostile Shots Fired 213 | . 26 . 19 . 160 8 Missed 62 | . 7 . 6 . 47 2 Damage Taken 2517 | . 156 . 467 . 1785 109 Core 711 | . 33 . 127 . 507 44 Absorbed by Shields . | . . . . . . . Core Remaining (%) 68 | 100 . . . 36 . . Volleys Fired 108 | . 23 . 2 . 78 5 Largest 2 | . 2 . 2 . 2 2 Hottest 78 | . 40 . 40 . 50 78 Shots Fired 178 | . 28 . 4 . 136 10 Gun 165 | . 28 . 4 . 123 10 Cannon . | . . . . . . . Launcher 13 | . . . . . 13 . Special . | . . . . . . . Kinetic 160 | . 28 . 4 . 123 5 Thermal . | . . . . . . . Explosive 13 | . . . . . 13 . Electromagnetic 5 | . . . . . . 5 Robot Hit Streak 8 | . 5 . 2 . 8 3 Robot Miss Streak 4 | . 3 . 3 . 4 2 Penetration Max 1 | . . . . . 1 . Secondary Targets 1 | . . . . . 1 . Max Gunslinging Chain 1 | . . . . . 1 . Shots Hit Robots 103 | . 16 . 1 . 81 5 Core Hits 58 | . 10 . . . 45 3 Critical Kills 3 | . . . . . 3 . Critical Parts Destroyed 2 | . 1 . . . 1 . Critical Strikes 5 | . 1 . . . 4 . Destroy 5 | . 1 . . . 4 . Melee Attacks . | . . . . . . . Impact . | . . . . . . . Slashing . | . . . . . . . Piercing . | . . . . . . . Sneak Attacks . | . . . . . . . Combat Hostiles . | . . . . . . . Follow-up Attacks . | . . . . . . . Damage Inflicted 1399 | . 195 . 10 3 1100 91 Guns 1183 | . 178 . 10 . 904 91 Cannons . | . . . . . . . Explosions 183 | . . . . . 183 . Melee . | . . . . . . . Ramming 33 | . 17 . . 3 13 . Kinetic 1129 | . 178 . 10 . 904 37 Thermal . | . . . . . . . Explosive 183 | . . . . . 183 . Electromagnetic 54 | . . . . . . 54 Impact . | . . . . . . . Slashing . | . . . . . . . Piercing . | . . . . . . . Highest Corruption 1 | . . . . . 1 1 Average Corruption 1 | . . . . . 1 1 Corruption Purged . | . . . . . . . Corruption Blocked . | . . . . . . . Effects 10 | . . . . . 6 4 Message Errors 4 | . . . . . 4 . Matter Fused 3 | . . . . . 1 2 Data Loss (minor) 1 | . . . . . . 1 Data Loss (major) 1 | . . . . . . 1 Misfires 1 | . . . . . 1 . Overload Shots . | . . . . . . . Overflow Damage . | . . . . . . . Projectiles . | . . . . . . . Explosions . | . . . . . . . Melee . | . . . . . . . Knockbacks . | . . . . . . . Impact . | . . . . . . . Kinetic . | . . . . . . . Secondary . | . . . . . . . Self-Inflicted Damage 44 | . . . . . 44 . Shots 3 | . . . . . 3 . Rammed 13 | . 4 . . 1 8 . Targets Rammed 16 | . 5 . . 1 10 . Kicked . | . . . . . . . Crushed 3 | . 1 . . . 2 . Highest Temperature 50 | . . . . . 17 50 Average Temperature 12 | . . . . . 6 22 Received Heat Transfer 552 | . . . 12 . 477 63 Siege Activations . | . . . . . . . Robots Corrupted . | . . . . . . . Combat Hostiles . | . . . . . . . Parts Fried . | . . . . . . . Impact Corruptions . | . . . . . . . Robots Melted . | . . . . . . . Combat Hostiles . | . . . . . . . Parts Melted . | . . . . . . . Heat Transferred . | . . . . . . . Parts Sabotaged . | . . . . . . . Parts Stolen . | . . . . . . . Parts Stripped . | . . . . . . . Power Chain Reactions . | . . . . . . . Alert | -11 -10 -10 -10 -9 -8 -8 ------- Run | Yrd Mat Min Exi Min Mat Gar Peak Influence 300 | . 205 7 . . 300 215 Initial 180 | . . 7 . . . 180 Average 94 | . 72 7 . . 122 182 Maximum Alert Level 1 | . 1 . . . 1 1 Low Security (%) 85 | 100 84 100 . 100 78 94 Level 1 14 | . 15 . . . 21 5 Level 2 . | . . . . . . . Level 3 . | . . . . . . . Level 4 . | . . . . . . . Level 5 . | . . . . . . . High Security . | . . . . . . . Max Security . | . . . . . . . Squads Dispatched 4 | . 1 . . . 3 . Investigation . | . . . . . . . Extermination . | . . . . . . . Reinforcement 4 | . 1 . . . 3 . Assault . | . . . . . . . Garrison . | . . . . . . . Intercept . | . . . . . . . Searches Triggered . | . . . . . . . Construction Impeded . | . . . . . . . Haulers Reinforced . | . . . . . . . Active Scanning Responses . | . . . . . . . Cargo Convoy Interrupts . | . . . . . . . Stealth | -11 -10 -10 -10 -9 -8 -8 --------- Run | Yrd Mat Min Exi Min Mat Gar Distress Signals 3 | . . . . . 3 . Communications Jammed . | . . . . . . . Distress Signals . | . . . . . . . Times Spotted 56 | . 14 . 4 . 31 7 Peak Tracking Total 7 | . 3 . 3 . 7 6 Tactical Retreats 3 | . 1 . . . 1 1 Traps | -11 -10 -10 -10 -9 -8 -8 ------- Run | Yrd Mat Min Exi Min Mat Gar Traps Triggered 1 | . . . . . 1 . Indirectly . | . . . . . . . Trap Hack Attempts . | . . . . . . . Triggered . | . . . . . . . Disarmed . | . . . . . . . Reprogrammed . | . . . . . . . Reused 1 | . . . . . 1 . Traps Reconfigurated 1 | . . . . . 1 . Traps Extracted . | . . . . . . . Installed . | . . . . . . . Triggered 1 | . . . . . 1 . Machines | -11 -10 -10 -10 -9 -8 -8 ---------- Run | Yrd Mat Min Exi Min Mat Gar Machines Disabled 2 | . 1 . 1 . . . Max in Single Turn 1 | . 1 . 1 . . . Machines Repaired . | . . . . . . . Machines Dismantled . | . . . . . . . Machines Sabotaged . | . . . . . . . Overloaded Fab Kills . | . . . . . . . Hacking | -11 -10 -10 -10 -9 -8 -8 --------- Run | Yrd Mat Min Exi Min Mat Gar Machines Accessed 6 | . 4 . . . 2 . Terminals 5 | . 4 . . . 1 . Fabricators . | . . . . . . . Repair Stations . | . . . . . . . Recycling Units . | . . . . . . . Scanalyzers . | . . . . . . . Garrison Access 1 | . . . . . 1 . Total Hacks 14 | . 10 . . . 4 . Successful 5 | . 4 . . . 1 . Failed 9 | . 6 . . . 3 . Catastrophic 1 | . 1 . . . . . Database Lockouts . | . . . . . . . Manual 12 | . 8 . 1 . 3 . Terminals 13 | . 10 . . . 3 . Fabricators . | . . . . . . . Repair Stations . | . . . . . . . Recycling Units . | . . . . . . . Scanalyzers . | . . . . . . . Garrison Access 1 | . . . . . 1 . Terminal Hacks 4 | . 4 . . . . . Robot Analysis 3 | . 3 . . . . . Emergency Access Points 1 | . 1 . . . . . Fabricator Hacks . | . . . . . . . Repair Station Hacks . | . . . . . . . Recycling Unit Hacks . | . . . . . . . Scanalyzer . | . . . . . . . Garrison Access Hacks 1 | . . . . . 1 . Unlock Access 1 | . . . . . 1 . Unauthorized Hacks . | . . . . . . . Terminals . | . . . . . . . Fabricators . | . . . . . . . Repair Stations . | . . . . . . . Recycling Units . | . . . . . . . Scanalyzers . | . . . . . . . Garrison Access . | . . . . . . . Data Cores Recovered 1 | . 1 . . . . . Used . | . . . . . . . Hacking Detections 5 | . 4 . . . 1 . Full Trace Events . | . . . . . . . Feedback Events . | . . . . . . . Feedback Blocked . | . . . . . . . Robot Schematics Acquired . | . . . . . . . Robots Built . | . . . . . . . Authchips . | . . . . . . . Time . | . . . . . . . Total Robot Build Rating . | . . . . . . . Part Schematics Acquired . | . . . . . . . Parts Built . | . . . . . . . Authchips . | . . . . . . . Time . | . . . . . . . Total Part Build Rating . | . . . . . . . Parts Repaired . | . . . . . . . Time . | . . . . . . . Parts Recycled . | . . . . . . . Recycled Matter . | . . . . . . . Retrieved Matter . | . . . . . . . Retrieved Components . | . . . . . . . Parts Scanalyzed . | . . . . . . . Part Schematics Acquired . | . . . . . . . Parts Damaged . | . . . . . . . Bothacking | -11 -10 -10 -10 -9 -8 -8 ------------ Run | Yrd Mat Min Exi Min Mat Gar Used RIF Installer . | . . . . . . . Robots Hacked . | . . . . . . . Non-combat . | . . . . . . . Combat . | . . . . . . . Robot Hacks Applied . | . . . . . . . Relay Couplers Released . | . . . . . . . Fabnet Peak Effective % . | . . . . . . . Robots Rewired . | . . . . . . . Allies Hacked . | . . . . . . . Hacks Repelled . | . . . . . . . Allies | -11 -10 -10 -10 -9 -8 -8 -------- Run | Yrd Mat Min Exi Min Mat Gar Total Allies . | . . . . . . . Largest Group . | . . . . . . . Highest-Rated Group . | . . . . . . . Highest-Rated Ally . | . . . . . . . Total Orders . | . . . . . . . Ally Attacks . | . . . . . . . Total Damage . | . . . . . . . Kills . | . . . . . . . Allies Corrupted . | . . . . . . . Allies Melted . | . . . . . . . Intel | -11 -10 -10 -10 -9 -8 -8 ------- Run | Yrd Mat Min Exi Min Mat Gar Robot Analysis Total 3 | . 3 . . . . . Derelict Logs Recovered 1 | . . 1 . . . . Drone Launches . | . . . . . . . Drone Recoveries . | . . . . . . . Exploration | -11 -10 -10 -10 -9 -8 -8 ------------- Run | Yrd Mat Min Exi Min Mat Gar Turns Passed 3438 | 96 640 387 435 71 1585 224 Spaces Moved 1636 | 63 339 242 266 42 510 174 Core 27 | 19 . . . . 8 . Treads 1394 | 44 339 242 266 42 461 . Legs 215 | . . . . . 41 174 Wheels . | . . . . . . . Hover . | . . . . . . . Flight . | . . . . . . . Fastest Speed 50 | 50 160 160 160 160 50 120 Average Speed 153 | 137 160 160 160 160 156 120 Slowest Speed 160 | 160 160 160 160 160 160 120 Overloaded Moves . | . . . . . . . Propulsion Burnouts . | . . . . . . . Robots Hopped . | . . . . . . . Cave-ins Triggered . | . . . . . . . Exploration Rate (%) 35 | 4 65 44 62 17 37 17 Regions Visited 6 Branch Regions 3 Pre-discovered Areas . | . . . . . . . Known Exits Taken 1 | . . . . . 1 . Unknown Exits Taken 5 | 1 1 1 1 1 . . Scrap Searched 1 | . . 1 . . . . Spaces Dug . | . . . . . . . Terrain Destroyed 49 | . . . . . 49 . Melee . | . . . . . . . Projectile 1 | . . . . . 1 . AOE 48 | . . . . . 48 . Terrain Rammed . | . . . . . . . Walls Destroyed . | . . . . . . . Machines Disabled . | . . . . . . . Actions | -11 -10 -10 -10 -9 -8 -8 --------- Run | Yrd Mat Min Exi Min Mat Gar Total 2383 | 69 408 242 272 45 1167 180 Wait 573 | . 27 . . 2 543 1 Move 1631 | 62 338 241 265 41 510 174 Hop . | . . . . . . . Pick Up 10 | 1 6 1 . . 2 . Fast Attach 24 | 6 1 . 2 . 15 . Attach 9 | . 3 . 1 1 4 . Detach 5 | . 3 . . . 2 . Swap 2 | . 1 . . . 1 . Drop 5 | . 1 . 2 . 2 . Fire 108 | . 23 . 2 . 78 5 Melee . | . . . . . . . Ram . | . . . . . . . Kick . | . . . . . . . Crush 16 | . 5 . . 1 10 . Escape Stasis . | . . . . . . . Rewire . | . . . . . . . Trap . | . . . . . . . Miscellaneous . | . . . . . . . Route ------- -11/Scrapyard -10/Materials (discovered 2 exits: [*Mat] / [*Min]) -10/Mines (discovered 3 exits: [*Mat x2] / *Exi) -10/Exiles (discovered 2 exits: [*Min x2]) -9/Mines -8/Materials -8/Garrison History --------- Turn | Location | Event 17 | -11/Scrapyard | Discovered new exit (range 16) 97 | -11/Scrapyard | Entered Materials 258 | -10/Materials | Discovered new exit (range 13) 307 | -10/Materials | Build established: Mutant 402 | -10/Materials | Discovered new exit (range 16) 737 | -10/Materials | Entered Mines 740 | -10/Mines | Met a Derelict bent on vengeance 757 | -10/Mines | Discovered new exit (range 13) 886 | -10/Mines | A weapon hastily lodged in a ceiling crevice suddenly fell to the ground 1030 | -10/Mines | Discovered new exit (range 8) 1118 | -10/Mines | Deemed a non-threat by the Exiles lab entrance 1118 | -10/Mines | Discovered new exit (range 5) 1124 | -10/Mines | Entered Exiles 1148 | -10/Exiles | Discovered new exit (range 15) 1169 | -10/Exiles | Met 8R-AWN 1192 | -10/Exiles | Met EX-HEX 1241 | -10/Exiles | Met EX-BIN 1260 | -10/Exiles | Aligned with FarCom system 1262 | -10/Exiles | Given EX-Vault access code 1310 | -10/Exiles | Opened EX-Vault 1320 | -10/Exiles | Found Prototype Device 1320 | -10/Exiles | Identified Trap Reconfigurator 1359 | -10/Exiles | Warned to stay clear of 0b10 Research branches 1379 | -10/Exiles | Exiles lab attacked by MAIN.C 1473 | -10/Exiles | Lost 6 allies 1477 | -10/Exiles | Core integrity fell below 50% 1543 | -10/Exiles | Discovered new exit (range 10) 1559 | -10/Exiles | Left Exiles lab with Trap Reconfigurator 1559 | -10/Exiles | Entered Mines 1601 | -9/Mines | Discovered new exit (range 10) 1630 | -9/Mines | Entered Materials 1630 | -8/Materials | Evolved 4 slots: Propulsion x2, Utility x2 2247 | -8/Materials | Lost 3 parts (2n1w) 2732 | -8/Materials | Build established: Scavenger-Mutant 2766 | -8/Materials | Lost 3 parts (2n1u) 2784 | -8/Materials | Core integrity fell below 50% 3135 | -8/Materials | Core integrity fell below 20% 3171 | -8/Materials | Lost 4 parts (1p1n2w) 3215 | -8/Materials | Identified exit to Garrison 3215 | -8/Materials | Entered Garrison 3267 | -8/Garrison | Triggered checkpoint 3439 | -8/Garrison | Destroyed by G-47 Trooper with Particle Gun Last Messages --------------- 03215_ Connecting with Garrison Access... >>Unlock Access door unlocked. 03215_ EXIT=UNLOCKED: GARRISON 03215_ Connecting with Garrison Access... LOCATION=GARRISON GOAL=ESCAPE 03215_ Receiving FarCom transmissions... 03267_ Beams of light sweep through the air. An alarm sounds. 03281_ System corrupted: Matter fused (-9). 03297_ System corrupted: Component data lost. 03344_ System corrupted: Matter fused (-7). 03410_ System corrupted: Substantial component data lost. 03424_ Slug penetrates G-47 Trooper. 03427_ G-47 Trooper destroyed. 03434_ Slug penetrates G-47 Trooper. 03437_ Slug penetrates Wall. 03439_ G-47 Trooper misfires. Map ----- +----------------------------------------------------+ | ?????????????????????????????????????????????????? | | ?????????????????????????????????????????????????? | | ?????????????????????????????????????????????????? | | ?????????????????????????????????????????????????? | | ?????????????????????????????????????????????????? | | ?????????????????????????????????????????????????? | | ?????????????????????????????????????????????????? | | ?????????????????????????????????????????????????? | | ?????????????????????????????????????????????????? | | ?????????????????????????????????????????????????? | | ?????????????????????????????????????????????????? | | ?????????????????????????????????????????????????? | | ?????????????????????????????????????????????????? | | ?????????????????????????????????????????????????? | | ??????? ???????????????????????????????????????? | | ??????? ???????????????????????????????????????? | | ??????? #??????????????????????????????????????? | | ??????# #??????????????????????????????????????? | | # ???## #??????????????????????????????????????? | | ??? "??????????????????????????????????????? | | ??? "?????????????????????####?????????????? | | ?? "??????????????????###!!!#?????????????? | | ?? "C?????????????????# !#?????????????? | | # ?# #??????????????????# #!!!#?????????????? | | ? ## #################### ###############???? | | ??? [g*= @ # #???? | | ??? ########## ### ##### #???? | | ??? ####### #????????# #?# #???# #???? | | ??????# #??????# #????????#####?# ###?# ##???? | | ??????# #??????# #??????????????# #"#?#####????? | | ??????# #??????# #??????????????# "#??????????? | | ??????# #??????+ g?gg????g??????# "#??????????? | | ??????# #??????# #??????????????# "#??????????? | | ??????# #??????# #??????????????# #"#??????????? | | ??????# #??????# #??????????????# ###??????????? | | ??????# ######## #?????????Y????# #????????????? | | ??????# ##########"""### #????????????? | | ??????# #????????????? | | ??????##+######## ########### ######????????????? | | ???????# #??????# #?????????????????????????????? | | ???????# #??????# #?????????????????????????????? | | ???????# #??????# #?????????????????????????????? | | ???????# #??????# #?????????????????????????????? | | ???????# #??????# #?????????????????????????????? | | ??????? ??????# ##############????????????????? | | ??????? ??????# #????????????????? | | ??????? ??????# #????????????????? | | ???????| !??????############# #????????????????? | | ???????###??????????????????# #????????????????? | | ????????????????????????????#####????????????????? | +----------------------------------------------------+ Best States ------------- Heat Dissipation 31 Energy Generation 16 Energy Capacity 290 Matter Stores 300 Matter Capacity 300 Sight Range 16 Terrain Scan Density 10 Evasion (%) 55 Targeting Accuracy 16 Armor Integrity Analysis 30 Recoil Reduction 3 Offensive Hacking 10 Item Schematics ----------------- None Robot Schematics ------------------ None Fabricated ------------ Nothing Alien Tech Used ----------------- None Achievements -------------- Armchair Analyst Please Form A Line Challenges ------------ None Game ------ Seed AssaultGyrokineticBuckler Manual? 0 Play Time 00:38:26 Cumulative 8.0 hours Start 2024.07.24 @ 12:29:10 End 2024.07.24 @ 13:07:57 Sessions 1 Manual Loads 0 Difficulty Rogue Special Mode None Game No. 14 Rogue 14 Adventurer 0 Explorer 0 Win Type - Total 0 Types 0/0/0/0/0/0/0/0/0 Lore% 12 Gallery% 11 Achievement% 13 Wizard Run 0 Options --------- Layout 1 ASCII 0 Keyboard 1 Movement Numpad Keybinds 0 Fullscreen 1 Font 16/SmallcapsGlow Map View 50x35 Zoom Use 0% Tactical HUD 1 Map Filters NONE Filters NONE Steam SD RUN: 2695a799-c081-4896-a933-d41a78a3b1d4